bitfinex/quotes_SOLUSD_20260213
["timestamp","ask_amount","ask_price","bid_price","bid_amount"]
[1770965044537,46.9,78.215,78.201,0.55188492]
[1770965044950,0.55456859,78.218,78.201,0.55188492]
[1770965050446,0.55456859,78.216,78.191,12.78908597]
[1770965050758,0.55456859,78.216,78.192,0.55188492]
[1770965052846,0.55456859,78.216,78.194,0.55188492]
[1770965053663,0.55456859,78.216,78.2,4.31382434]
[1770965053870,0.55456859,78.216,78.201,0.55188492]
[1770965055366,12.78333672,78.227,78.201,13.33931773]
[1770965055557,4.41382434,78.23,78.201,13.33931773]
[1770965055558,0.55456859,78.226,78.202,0.55188492]
[1770965056565,0.55456859,78.226,78.204,0.55188492]
[1770965067578,0.55456859,78.224,78.204,0.55188492]
[1770965068370,0.55456859,78.224,78.194,13.34048979]
[1770965069170,0.55456859,78.224,78.195,0.55188492]
[1770965070980,12.78396379,78.223,78.195,0.55188492]
[1770965071187,0.59987657,78.222,78.195,0.55188492]
[1770965071681,0.59987657,78.219,78.194,13.3341497]
[1770965072090,0.59987657,78.218,78.194,12.78860487]
[1770965072470,0.59987657,78.216,78.194,12.78860487]
[1770965074682,0.55724855,78.199,78.173,0.55953887]
[1770965074889,0.55724855,78.198,78.173,0.55953887]
[1770965075472,0.55724855,78.196,78.173,0.55953887]
[1770965075676,0.55724855,78.196,78.175,0.55953887]
[1770965083898,0.55724855,78.194,78.175,0.55953887]
[1770965084687,0.55724855,78.189,78.148,0.55953887]
[1770965084885,0.55724855,78.187,78.161,0.55953887]
[1770965086500,0.55724855,78.187,78.162,12.79394078]
[1770965086801,0.55724855,78.187,78.163,0.55953887]
[1770965088900,0.55724855,78.186,78.163,0.55953887]
[1770965089905,0.55724855,78.186,78.165,0.55953887]
[1770965090101,0.55724855,78.186,78.154,12.79522962]
[1770965090307,0.55724855,78.179,78.155,0.55953887]
[1770965093404,0.55724855,78.179,78.157,0.55953887]
[1770965097216,0.55724855,78.179,78.161,0.55953887]
[1770965099919,0.55724855,78.183,78.161,0.55953887]
[1770965100099,0.55724855,78.186,78.161,0.55953887]
[1770965101118,12.78984997,78.187,78.161,0.55953887]
[1770965101326,60.30923753,78.191,78.171,0.56451997]
[1770965101627,0.59281016,78.19,78.171,0.56451997]
[1770965102621,0.59281016,78.19,78.17,4.3186122]
[1770965102622,0.59281016,78.179,78.151,0.56451997]
[1770965103099,0.59281016,78.179,78.146,0.56451997]
[1770965103300,0.59281016,78.169,78.141,0.56451997]
[1770965103620,0.59281016,78.167,78.141,0.56451997]
[1770965104317,0.59281016,78.167,78.143,0.56451997]
[1770965104525,0.59281016,78.165,78.143,0.56451997]
[1770965107204,0.59281016,78.165,78.116,4.61729252]
[1770965107205,0.59281016,78.159,78.134,0.56451997]
[1770965107404,0.59281016,78.158,78.134,0.56451997]
[1770965108218,0.59281016,78.158,78.136,0.56451997]
[1770965108521,47.56,78.159,78.141,0.56451997]
[1770965108522,48.15281016,78.159,78.141,0.56451997]
[1770965108824,0.59281016,78.158,78.141,0.56451997]
[1770965110809,48.15281016,78.159,78.141,0.56451997]
[1770965111025,0.59281016,78.158,78.141,0.56451997]
[1770965112132,47.64,78.16,78.143,0.56451997]
[1770965112632,47.64,78.16,78.145,0.56451997]
[1770965112811,0.59281016,78.169,78.145,0.56451997]
[1770965113228,0.59281016,78.167,78.145,0.56451997]
[1770965113524,0.59281016,78.167,78.139,0.56451997]
[1770965113731,0.59281016,78.159,78.134,13.36304004]
[1770965114514,0.59281016,78.157,78.134,13.36304004]
[1770965114811,0.59281016,78.157,78.135,0.56451997]
[1770965117216,0.59281016,78.156,78.135,0.56451997]
[1770965118031,4.3186122,78.15,78.128,0.56451997]
[1770965118232,0.59281016,78.149,78.128,0.56451997]
[1770965121552,0.59281016,78.149,78.13,0.56451997]
[1770965123651,47.66,78.158,78.132,0.56451997]
[1770965124023,48.25281016,78.158,78.132,0.56451997]
[1770965124736,0.59281016,78.157,78.134,0.56451997]
[1770965127243,47.66,78.158,78.136,0.56451997]
[1770965127446,48.25281016,78.158,78.136,0.56451997]
[1770965127633,0.59281016,78.157,78.136,0.56451997]
[1770965129431,0.59281016,78.157,78.138,0.56451997]
[1770965130041,0.59281016,78.157,78.141,0.56451997]
[1770965135652,0.59281016,78.157,78.137,0.56875793]
[1770965136458,0.55793974,78.155,78.117,0.56875793]
[1770965136634,0.55793974,78.149,78.112,0.56875793]
[1770965137553,0.55793974,78.149,78.114,0.56875793]
[1770965137854,0.55793974,78.149,78.121,0.56875793]
[1770965138835,0.55793974,78.147,78.121,0.56875793]
[1770965139243,47.96,78.154,78.114,0.56875793]
[1770965139244,0.55793974,78.139,78.114,0.56875793]
[1770965139431,0.55793974,78.137,78.114,0.56875793]
[1770965140451,0.55793974,78.135,78.114,0.56875793]
[1770965141153,0.55793974,78.134,78.116,0.56875793]
[1770965142258,48.0,78.133,78.116,0.56875793]
[1770965142456,0.55793974,78.132,78.11,0.2]
[1770965142642,0.55793974,78.119,78.1,0.2]
[1770965143455,0.55793974,78.117,78.1,0.2]
[1770965143661,0.55793974,78.117,78.1,13.00406021]
[1770965143957,0.55793974,78.117,78.1,13.57281814]
[1770965144159,0.55793974,78.117,78.1,0.76875793]
[1770965144747,0.55793974,78.117,78.1,0.2]
[1770965145763,0.55793974,78.115,78.1,0.2]
[1770965145958,0.55793974,78.109,78.1,0.2]
[1770965148257,48.0,78.118,78.101,0.56875793]
[1770965148856,48.0,78.118,78.102,0.56875793]
[1770965149043,0.55793974,78.134,78.111,0.56875793]
[1770965149246,48.08,78.136,78.111,0.56875793]
[1770965149445,0.55793974,78.138,78.111,0.56875793]
[1770965149657,48.63793974,78.138,78.121,0.56875793]
[1770965149961,46.77478063,78.138,78.12,4.3186122]
[1770965152468,0.59519619,78.137,78.11,4.3186122]
[1770965154374,0.59519619,78.137,78.12,4.3186122]
[1770965154551,48.12,78.139,78.12,4.3186122]
[1770965155054,48.12,78.139,78.12,4.32205226]
[1770965156956,48.12,78.139,78.121,12.80065539]
[1770965159776,48.12,78.139,78.121,44.80229387]
[1770965159971,48.12,78.139,78.13,4.32205226]
[1770965160158,0.59519619,78.149,78.13,4.32205226]
[1770965160480,0.59519619,78.149,78.121,12.80065539]
[1770965161771,0.59519619,78.159,78.141,12.79737909]
[1770965163480,0.59519619,78.159,78.131,12.79901703]
[1770965164875,0.59519619,78.158,78.131,12.79901703]
[1770965165273,0.59519619,78.156,78.109,32.00625262]
[1770965165479,0.59519619,78.149,78.11,4.32205226]
[1770965165979,0.59519619,78.149,78.12,4.32205226]
[1770965166360,0.59519619,78.147,78.12,4.32205226]
[1770965167068,0.59519619,78.147,78.13,4.32205226]
[1770965167268,31.98372473,78.165,78.121,12.80065539]
[1770965167269,0.59519619,78.153,78.14,4.32205226]
[1770965169979,0.59519619,78.16,78.14,17.11954227]
[1770965171784,48.2,78.164,78.14,49.11339944]
[1770965172087,0.59519619,78.163,78.14,49.11339944]
[1770965172274,48.2,78.164,78.15,4.32205226]
[1770965172582,0.59519619,78.169,78.15,4.32205226]
[1770965172788,0.59519619,78.18,78.15,4.32205226]
[1770965173086,0.59519619,78.18,78.14,44.79134718]
[1770965173087,0.59519619,78.18,78.16,4.32205226]
[1770965174283,0.59519619,78.19,78.17,4.32205226]
[1770965174890,0.59519619,78.19,78.161,12.79410447]
[1770965175270,0.59519619,78.19,78.17,4.32205226]
[1770965175487,0.59519619,78.19,78.161,12.79410447]
[1770965176181,0.59519619,78.188,78.16,4.32205226]
[1770965176389,0.59519619,78.188,78.16,17.11621364]
[1770965180092,0.59519619,78.188,78.161,0.02097324]
[1770965180403,0.59519619,78.188,78.17,4.32205226]
[1770965182584,0.59519619,78.188,78.171,12.79246779]
[1770965182781,0.59519619,78.188,78.17,4.32205226]
[1770965182981,0.59519619,78.188,78.167,12.79303526]
[1770965183177,0.59519619,78.188,78.161,0.02261648]
[1770965183382,0.59519619,78.186,78.16,4.32205226]
[1770965184786,0.59519619,78.186,78.161,12.79410447]
[1770965185196,0.59519619,78.191,78.171,0.02370919]
[1770965185488,0.59519619,78.191,78.17,4.32205226]
[1770965186792,0.59519619,78.191,78.17,17.1146337]
[1770965186999,0.59519619,78.191,78.171,0.02475443]
[1770965187196,0.59519619,78.191,78.18,4.32205226]
[1770965187887,0.59519619,78.191,78.171,0.02475443]
[1770965188490,0.59519619,78.196,78.18,4.32205226]
[1770965188885,0.59519619,78.196,78.176,0.02578575]
[1770965189084,0.59519619,78.225,78.191,0.02578575]
[1770965189397,0.59519619,78.224,78.2,4.32205226]
[1770965191001,0.07425365,78.23,78.21,8.64410452]
[1770965191197,0.1,78.24,78.213,4.61729252]
[1770965191499,0.60806936,78.254,78.23,4.32205226]
[1770965191705,0.70806936,78.25,78.23,4.32205226]
[1770965191905,0.60806936,78.248,78.23,4.32205226]
[1770965192081,0.60806936,78.248,78.22,4.32205226]
[1770965192282,0.60806936,78.248,78.22,17.10641148]
[1770965192494,0.60806936,78.248,78.23,4.32205226]
[1770965194081,0.60806936,78.248,78.22,17.10641148]
[1770965195695,0.60806936,78.248,78.211,44.75064928]
[1770965195900,0.60806936,78.248,78.22,4.32205226]
[1770965196204,0.60806936,78.248,78.23,4.32205226]
[1770965198683,0.60806936,78.248,78.225,12.78349011]
[1770965198684,0.1,78.25,78.24,4.32205226]
[1770965199211,0.1,78.25,78.23,4.32205226]
[1770965199703,0.60806936,78.249,78.23,4.32205226]
[1770965200291,0.60806936,78.249,78.214,12.78543483]
[1770965200697,0.60806936,78.239,78.205,12.78680177]
[1770965202602,52.56205226,78.24,78.2,4.32205226]
[1770965202603,0.60806936,78.237,78.2,4.32205226]
[1770965202907,0.60806936,78.229,78.2,4.32205226]
[1770965203112,0.60806936,78.229,78.19,4.32205226]
[1770965203410,0.60806936,78.219,78.186,12.79001355]
[1770965203795,48.24,78.228,78.17,4.32205226]
[1770965203796,0.60806936,78.199,78.17,4.32205226]
[1770965204405,0.60806936,78.209,78.18,4.32205226]
[1770965204607,0.60806936,78.209,78.181,12.79083153]
[1770965207615,31.95858207,78.227,78.181,12.79083153]
[1770965207616,0.60806936,78.215,78.19,4.32205226]
[1770965209241,0.60806936,78.227,78.2,4.32205226]
[1770965209404,0.60806936,78.227,78.2,17.10968915]
[1770965212123,0.60806936,78.227,78.19,4.32205226]
[1770965212321,0.60806936,78.219,78.19,4.32205226]
[1770965212523,0.60806936,78.219,78.186,12.79001355]
[1770965215226,0.60806936,78.217,78.181,12.79083153]
[1770965216126,0.60806936,78.209,78.181,12.79083153]
[1770965219122,0.60806936,78.209,78.181,44.76791035]
[1770965219627,0.60806936,78.219,78.181,44.76791035]
[1770965219825,0.60806936,78.219,78.19,4.31530462]
[1770965220830,0.60806936,78.236,78.181,108.722068]
[1770965221038,0.60806936,78.236,78.21,4.31530462]
[1770965221927,0.60806936,78.249,78.22,4.31530462]
[1770965222320,0.60806936,78.249,78.23,4.31530462]
[1770965224132,0.60806936,78.249,78.211,44.75073838]
[1770965224336,0.60806936,78.249,78.23,4.31530462]
[1770965224928,0.60806936,78.249,78.231,12.78265649]
[1770965225131,0.1,78.25,78.231,12.78265649]
[1770965226534,0.70806936,78.25,78.231,12.78265649]
[1770965227236,0.1,78.25,78.24,4.31530462]
[1770965227441,0.70806936,78.25,78.231,12.78265649]
[1770965230844,0.1,78.26,78.24,8.63060924]
[1770965231021,0.60806936,78.278,78.231,44.73929771]
[1770965231022,0.60806936,78.278,78.241,50.84]
[1770965231341,0.60806936,78.278,78.26,4.31530462]
[1770965232840,0.1,78.28,78.261,12.77775648]
[1770965233026,0.1,78.28,78.261,44.72214768]
[1770965233219,0.1,78.29,78.261,44.72214768]
[1770965233425,0.70806936,78.29,78.27,4.31530462]
[1770965234026,0.70806936,78.29,78.261,12.77775648]
[1770965234620,0.60806936,78.288,78.255,12.77873618]
[1770965234829,0.60806936,78.279,78.251,12.7793894]
[1770965236430,0.60806936,78.279,78.26,4.31530462]
[1770965236640,0.60806936,78.285,78.27,4.31530462]
[1770965237032,0.60806936,78.285,78.26,4.31530462]
[1770965239439,0.60806936,78.285,78.261,12.77775648]
[1770965242041,0.1,78.29,78.27,4.31530462]
[1770965242243,0.60806936,78.289,78.261,44.72214768]
[1770965242430,0.60806936,78.279,78.25,4.31530462]
[1770965244157,0.60806936,78.279,78.251,12.7793894]
[1770965252545,0.60806936,78.277,78.251,12.7793894]
[1770965254639,0.60806936,78.275,78.241,12.78102273]
[1770965256356,0.60806936,78.269,78.241,12.78102273]
[1770965256538,0.60806936,78.249,78.202,44.75588859]
[1770965256737,4.31530462,78.25,78.202,44.75588859]
[1770965256738,0.60806936,78.239,78.202,44.75588859]
[1770965257750,0.60806936,78.239,78.21,4.31530462]
[1770965258645,0.60806936,78.239,78.211,12.78592525]
[1770965260260,0.60806936,78.239,78.2,4.31530462]
[1770965261450,0.60806936,78.239,78.21,4.31530462]
[1770965263473,0.60806936,78.239,78.211,12.78592525]
[1770965264470,0.60806936,78.238,78.211,12.78592525]
[1770965264772,0.60806936,78.229,78.211,12.78592525]
[1770965265178,0.60806936,78.219,78.181,12.79083153]
[1770965265359,0.60806936,78.219,78.184,31.97572269]
[1770965265756,0.60806936,78.219,78.181,12.79083153]
[1770965265757,0.60806936,78.209,78.181,12.79083153]
[1770965266077,0.60806936,78.209,78.17,4.51530462]
[1770965266078,0.60806936,78.199,78.171,12.79246779]
[1770965266975,0.60806936,78.199,78.17,0.2]
[1770965266976,0.60806936,78.189,78.17,0.2]
[1770965267477,0.57604597,78.179,78.154,31.98792209]
[1770965268457,0.57604597,78.179,78.147,12.79639653]
[1770965269677,0.57604597,78.179,78.148,0.18273258]
[1770965269875,47.78,78.184,78.16,4.31530462]
[1770965270062,0.57604597,78.187,78.161,0.18273258]
[1770965271569,0.57604597,78.187,78.162,12.79394078]
[1770965272176,0.57604597,78.187,78.163,0.18248614]
[1770965273392,0.57604597,78.198,78.163,0.18248614]
[1770965273877,4.31530462,78.19,78.165,0.18225758]
[1770965274067,0.57604597,78.189,78.165,0.18225758]
[1770965275593,0.57604597,78.189,78.166,12.79328608]
[1770965277068,0.57604597,78.189,78.167,0.18192063]
[1770965278482,0.57604597,78.189,78.162,0.18181007]
[1770965280291,0.57604597,78.189,78.163,12.7937771]
[1770965280500,0.57604597,78.189,78.164,0.18159376]
[1770965280701,0.57604597,78.189,78.163,12.7937771]
[1770965280702,0.55362113,78.202,78.171,0.18137707]
[1770965280898,4.31770757,78.19,78.163,44.77821986]
[1770965281109,0.55362113,78.189,78.163,12.7937771]
[1770965282598,0.55362113,78.189,78.157,0.18137707]
[1770965282599,0.55362113,78.189,78.159,0.18126822]
[1770965282895,0.55362113,78.179,78.158,12.79459556]
[1770965283106,0.55362113,78.179,78.149,12.79606904]
[1770965283282,0.55362113,78.179,78.15,0.18116256]
[1770965284580,0.55362113,78.179,78.124,55.81786122]
[1770965284581,0.55362113,78.179,78.16,4.49867974]
[1770965284787,0.55362113,78.179,78.155,0.18097217]
[1770965286382,0.55362113,78.179,78.161,0.18087452]
[1770965288194,0.55362113,78.189,78.162,44.77879275]
[1770965288392,0.55362113,78.189,78.163,0.1806917]
[1770965289798,0.55362113,78.189,78.162,12.79394078]
[1770965290184,0.55362113,78.189,78.163,0.18050799]
[1770965290403,0.55362113,78.189,78.158,0.18050799]
[1770965292402,0.55362113,78.189,78.16,0.18031925]
[1770965294089,31.96634962,78.208,78.15,4.31770757]
[1770965294090,0.55362113,78.205,78.181,0.18012891]
[1770965295300,0.55362113,78.219,78.191,0.18004106]
[1770965296206,0.55362113,78.219,78.2,4.31770757]
[1770965296406,0.55362113,78.219,78.193,0.17995011]
[1770965298917,0.55362113,78.219,78.194,12.78870501]
[1770965299091,0.55362113,78.219,78.194,12.96837872]
[1770965299718,0.55362113,78.219,78.195,0.1795881]
[1770965302196,0.55362113,78.219,78.196,12.78837792]
[1770965303492,0.55362113,78.209,78.183,12.79050432]
[1770965304605,0.55362113,78.209,78.184,0.17917511]
[1770965304802,0.55362113,78.219,78.2,4.31770757]
[1770965305209,0.55362113,78.219,78.197,0.17917511]
[1770965305510,0.55362113,78.219,78.191,0.17917511]
[1770965307908,0.55362113,78.219,78.191,12.96837079]
[1770965308110,0.55362113,78.219,78.192,0.17894797]
[1770965313819,0.55362113,78.219,78.191,44.76218489]
[1770965313820,0.58705163,78.224,78.201,0.17841719]
[1770965316827,0.58705163,78.224,78.201,12.96597745]
[1770965318020,0.58705163,78.224,78.201,12.78756026]
[1770965318223,0.57540439,78.233,78.211,0.17806278]
[1770965318429,4.31770757,78.25,78.221,0.59296067]
[1770965319705,47.56,78.249,78.222,13.37708789]
[1770965320508,0.57540439,78.248,78.222,13.37708789]
[1770965320710,0.57540439,78.248,78.231,0.59296067]
[1770965321121,0.57540439,78.248,78.227,0.59296067]
[1770965321908,0.57540439,78.248,78.227,13.37624956]
[1770965323408,0.57540439,78.248,78.223,12.78385458]
[1770965323615,47.6,78.247,78.223,12.78385458]
[1770965323937,0.57540439,78.246,78.223,13.37681525]
[1770965324312,0.57540439,78.246,78.22,4.31770757]
[1770965324515,47.6,78.245,78.22,4.31770757]
[1770965324837,0.57540439,78.244,78.22,4.31770757]
[1770965325414,12.78069603,78.243,78.22,4.31770757]
[1770965325614,0.57540439,78.239,78.214,12.78531404]
[1770965326135,0.57540439,78.239,78.21,17.10372088]
[1770965326617,0.57540439,78.229,78.205,12.78688526]
[1770965327537,0.57540439,78.229,78.21,4.31770757]
[1770965327840,0.57540439,78.236,78.211,0.59296067]
[1770965328020,0.57540439,78.236,78.22,4.31770757]
[1770965328219,0.57540439,78.243,78.22,4.31770757]
[1770965333540,0.57540439,78.243,78.221,0.59296067]
[1770965333837,0.57540439,78.248,78.221,0.59296067]
[1770965334057,47.72,78.243,78.221,0.59296067]
[1770965335044,47.72,78.243,78.223,0.59296067]
[1770965336039,48.29540439,78.243,78.223,0.59296067]
[1770965338946,0.57540439,78.242,78.224,12.78380036]
[1770965339242,0.57540439,78.242,78.22,4.3104215]
[1770965339433,0.57540439,78.241,78.214,12.7853308]
[1770965340335,4.3104215,78.24,78.214,12.7853308]
[1770965340561,0.57540439,78.239,78.214,12.7853308]
[1770965340729,0.56451826,78.229,78.201,13.37626958]
[1770965340924,0.56451826,78.219,78.196,12.78833485]
[1770965341231,0.56451826,78.217,78.196,12.78833485]
[1770965342147,0.56451826,78.217,78.192,12.78903212]
[1770965345843,0.56451826,78.217,78.193,0.58870932]
[1770965346642,47.8,78.217,78.201,0.58870932]
[1770965346945,47.82,78.221,78.201,0.58870932]
[1770965348129,0.56451826,78.22,78.202,12.78739674]
[1770965349360,0.56451826,78.22,78.195,12.7884012]
[1770965349361,0.56451826,78.219,78.195,12.7884012]
[1770965349531,0.56451826,78.218,78.195,12.7884012]
[1770965351435,0.56451826,78.216,78.195,12.7884012]
[1770965357063,0.56451826,78.216,78.195,0.58870932]
[1770965357243,47.84,78.217,78.195,0.58870932]
[1770965357543,0.56451826,78.216,78.195,0.58870932]
[1770965361160,0.56451826,78.216,78.197,0.58870932]
[1770965362461,0.56451826,78.216,78.198,12.78805084]
[1770965362759,0.56451826,78.216,78.198,13.37676016]
[1770965363261,0.56451826,78.216,78.199,0.58870932]
[1770965364468,48.56451826,78.218,78.201,0.58870932]
[1770965364765,0.56451826,78.217,78.201,0.58870932]
[1770965365169,0.56451826,78.229,78.201,0.58870932]
[1770965366580,0.56451826,78.229,78.203,0.58870932]
[1770965367668,0.56451826,78.228,78.203,0.58870932]
[1770965367854,0.56451826,78.226,78.203,0.58870932]
[1770965368058,0.56451826,78.219,78.196,12.7882766]
[1770965369177,0.56451826,78.219,78.191,0.58870932]
[1770965371458,0.56451826,78.219,78.193,0.59066837]
[1770965373768,0.56451826,78.219,78.195,0.59066837]
[1770965375253,0.56451826,78.219,78.196,12.78837792]
[1770965375453,0.56451826,78.219,78.197,0.5856333]
[1770965380669,0.56451826,78.219,78.198,13.37368414]
[1770965381558,0.56451826,78.219,78.199,0.5856333]
[1770965382969,0.56451826,78.219,78.2,13.37335708]
[1770965383771,0.59211117,78.224,78.201,0.5856333]
[1770965385069,48.18,78.243,78.211,0.5856333]
[1770965385373,48.18,78.243,78.221,0.5856333]
[1770965387064,0.59211117,78.242,78.221,0.5856333]
[1770965387758,0.59211117,78.253,78.222,0.5856333]
[1770965387976,0.59211117,78.253,78.231,0.5856333]
[1770965388374,0.59211117,78.252,78.231,0.5856333]
[1770965389175,0.59211117,78.249,78.221,0.5856333]
[1770965391873,0.59211117,78.249,78.223,0.5856333]
[1770965393877,0.59211117,78.249,78.225,0.5856333]
[1770965397284,0.59211117,78.229,78.181,0.5856333]
[1770965397580,0.59211117,78.189,78.16,4.8960548]
[1770965397773,0.59211117,78.189,78.151,0.5856333]
[1770965397976,0.59211117,78.179,78.151,0.5856333]
[1770965398287,26.06,78.184,78.161,0.5856333]
[1770965398690,0.59211117,78.183,78.161,0.5856333]
[1770965400386,0.59211117,78.183,78.14,0.2]
[1770965400387,0.59211117,78.209,78.171,0.5856333]
[1770965400685,0.5609373,78.215,78.191,0.56476293]
[1770965401085,48.22,78.219,78.191,0.56476293]
[1770965401276,0.5609373,78.221,78.201,0.56476293]
[1770965401471,4.31795089,78.22,78.201,0.56476293]
[1770965401771,12.78390101,78.224,78.196,0.56476293]
[1770965402077,4.31795089,78.23,78.2,4.31795089]
[1770965402282,4.31795089,78.24,78.201,0.56476293]
[1770965402484,12.78004268,78.247,78.211,0.56476293]
[1770965402686,4.41795089,78.26,78.221,0.56476293]
[1770965402874,48.24,78.253,78.221,0.56476293]
[1770965403075,4.31795089,78.25,78.221,0.56476293]
[1770965403383,0.5609373,78.239,78.211,0.56476293]
[1770965403585,0.1,78.26,78.205,0.56476293]
[1770965403586,0.5609373,78.229,78.205,0.56476293]
[1770965403777,0.5609373,78.229,78.201,12.78745782]
[1770965403975,0.5609373,78.229,78.196,0.56476293]
[1770965407188,0.5609373,78.229,78.194,12.78859875]
[1770965407189,0.5609373,78.227,78.201,0.56476293]
[1770965407372,0.5609373,78.234,78.211,0.56476293]
[1770965408274,12.78154804,78.238,78.211,0.56476293]
[1770965408872,0.5609373,78.237,78.211,0.56476293]
[1770965409794,12.78183956,78.236,78.211,0.56476293]
[1770965411795,0.5609373,78.236,78.211,0.56476293]
[1770965413198,12.78200293,78.235,78.211,0.56476293]
[1770965413802,13.34294023,78.235,78.211,0.56476293]
[1770965414003,0.5609373,78.234,78.211,0.56476293]
[1770965414699,12.78141895,78.239,78.211,0.56476293]
[1770965414903,0.5609373,78.238,78.211,0.56476293]
[1770965416298,0.5609373,78.238,78.212,12.78576177]
[1770965416503,0.5609373,78.243,78.213,0.56476293]
[1770965416703,0.5609373,78.248,78.221,0.56476293]
[1770965417901,12.78004268,78.247,78.221,0.56476293]
[1770965418291,13.34088518,78.248,78.222,0.56476293]
[1770965418806,0.5609373,78.247,78.222,0.56476293]
[1770965420207,12.78020601,78.246,78.222,0.56476293]
[1770965422908,31.94520757,78.259,78.224,0.56476293]
[1770965422909,0.5609373,78.253,78.224,0.56476293]
[1770965423108,0.5609373,78.253,78.216,31.96267228]
[1770965423109,0.5609373,78.249,78.216,12.78502714]
[1770965423317,0.5609373,78.247,78.217,0.56476293]
[1770965424199,0.5609373,78.247,78.22,4.31795089]
[1770965424398,0.5609373,78.247,78.221,0.56476293]
[1770965425610,0.5609373,78.245,78.221,0.56476293]
[1770965427512,0.5609373,78.243,78.22,4.31795089]
[1770965427698,0.5609373,78.243,78.216,0.56476293]
[1770965428099,0.5609373,78.243,78.216,13.34983557]
[1770965428506,12.78053269,78.244,78.19,49.46]
[1770965428507,0.5609373,78.229,78.201,0.56476293]
[1770965430511,48.4,78.23,78.211,0.5656623]
[1770965430714,31.95133173,78.244,78.221,0.5656623]
[1770965430715,61.20067852,78.244,78.221,0.5656623]
[1770965431406,48.96806659,78.251,78.221,0.5656623]
[1770965431608,4.41795089,78.26,78.231,0.5656623]
[1770965431609,0.54806659,78.256,78.231,0.5656623]
[1770965432117,12.77873618,78.255,78.231,0.5656623]
[1770965432821,0.54806659,78.255,78.231,0.5656623]
[1770965433225,0.54806659,78.255,78.227,0.5656623]
[1770965437827,0.54806659,78.255,78.23,4.31795089]
[1770965438021,0.55295962,78.254,78.231,0.55655704]
[1770965438414,0.55295962,78.252,78.231,0.55655704]
[1770965440626,13.33221853,78.252,78.231,0.55655704]
[1770965440928,0.55295962,78.251,78.231,0.55655704]
[1770965443809,0.1,78.26,78.232,0.55655704]
[1770965444529,0.1,78.26,78.241,0.55655704]
[1770965446321,0.55295962,78.281,78.251,0.55655704]
[1770965446523,48.6,78.284,78.261,0.55655704]
[1770965446725,12.77416552,78.283,78.261,0.55655704]
[1770965448722,13.32712514,78.283,78.261,0.55655704]
[1770965449444,0.55295962,78.28,78.261,0.55655704]
[1770965450154,12.77416552,78.283,78.261,0.55655704]
[1770965450346,48.64,78.282,78.261,0.55655704]
[1770965451643,48.66,78.283,78.263,0.55655704]
[1770965451838,48.66,78.283,78.271,0.55655704]
[1770965452043,0.1,78.29,78.271,0.55655704]
[1770965453143,0.55295962,78.288,78.243,0.55655704]
[1770965453447,0.55295962,78.288,78.261,0.55655704]
[1770965453642,0.55295962,78.288,78.263,0.55655704]
[1770965453848,0.1,78.29,78.263,0.55655704]
[1770965454148,12.77318652,78.289,78.263,0.55655704]
[1770965455362,0.65295962,78.29,78.265,0.55655704]
[1770965456259,0.55295962,78.289,78.265,0.55655704]
[1770965456453,0.55295962,78.289,78.261,0.55655704]
[1770965457668,0.55295962,78.287,78.261,0.55655704]
[1770965460053,12.77318652,78.289,78.271,0.55655704]
[1770965460364,0.1,78.29,78.271,0.55655704]
[1770965461346,0.1,78.3,78.282,0.57785442]
[1770965461742,0.1,78.3,78.291,0.57785442]
[1770965461953,0.1,78.31,78.292,0.57785442]
[1770965462552,0.1,78.32,78.3,4.30522789]
[1770965462747,0.1,78.33,78.311,0.57785442]
[1770965465076,0.1,78.33,78.321,0.57785442]
[1770965465250,0.1,78.34,78.322,0.57785442]
[1770965466847,0.1,78.35,78.331,0.57785442]
[1770965467056,0.1,78.36,78.341,0.57785442]
[1770965467267,0.60464905,78.38,78.351,0.57785442]
[1770965467452,0.60464905,78.38,78.36,4.30522789]
[1770965467654,0.60464905,78.38,78.357,0.57785442]
[1770965467962,12.75873214,78.378,78.357,0.57785442]
[1770965468162,0.60464905,78.38,78.36,4.88308231]
[1770965468573,0.60464905,78.38,78.36,0.57785442]
[1770965468760,0.60464905,78.38,78.355,0.57785442]
[1770965469283,0.60464905,78.397,78.362,0.57785442]
[1770965469459,12.75531562,78.399,78.371,0.57785442]
[1770965469860,48.62,78.401,78.381,0.57785442]
[1770965470071,0.60464905,78.4,78.371,0.57785442]
[1770965470466,48.62,78.401,78.381,0.57785442]
[1770965470690,0.60464905,78.4,78.381,0.57785442]
[1770965471370,12.75510204,78.4,78.375,0.57785442]
[1770965471673,0.60464905,78.399,78.363,12.76109636]
[1770965472072,0.60464905,78.389,78.363,12.76109636]
[1770965472262,0.60464905,78.389,78.356,0.57785442]
[1770965472263,0.60464905,78.388,78.356,0.57785442]
[1770965472577,0.60464905,78.386,78.36,4.30522789]
[1770965472960,0.60464905,78.386,78.356,0.57785442]
[1770965473458,0.60464905,78.386,78.361,0.57785442]
[1770965473663,48.66,78.389,78.361,0.57785442]
[1770965473862,48.66,78.389,78.371,0.57785442]
[1770965474065,49.26464905,78.389,78.37,4.30522789]
[1770965474265,0.60464905,78.388,78.364,0.57785442]